[Event "Late-Titled-Tuesday-Blitz-April-16-2024"]
[Site "Chess.com"]
[Date "2024.04.16"]
[Round "8"]
[White "AEMEffi"]
[Black "ChadBiryani"]
[Result "0-1"]
[WhiteElo "2287"]
[BlackElo "2466"]
[TimeControl "180+1"]
[EndTime "15:26:05 PDT"]
[Termination "ChadBiryani won on time"]

1. d4 {[%clk 0:03:00]} 1... f5 {[%clk 0:02:58.6]} 2. c4 {[%clk 0:03:00.9]} 2...
Nf6 {[%clk 0:02:58.6]} 3. Nc3 {[%clk 0:03:00.4]} 3... g6 {[%clk 0:02:56.3]} 4.
Nh3 {[%clk 0:02:59]} 4... d6 {[%clk 0:02:54.6]} 5. g3 {[%clk 0:02:58.7]} 5...
Bg7 {[%clk 0:02:54.5]} 6. Bg2 {[%clk 0:02:59.2]} 6... O-O {[%clk 0:02:54.8]} 7.
O-O {[%clk 0:02:59.9]} 7... c6 {[%clk 0:02:55.3]} 8. Nf4 {[%clk 0:02:58.5]} 8...
e5 {[%clk 0:02:53.8]} 9. dxe5 {[%clk 0:02:55.5]} 9... dxe5 {[%clk 0:02:53.9]}
10. Nh3 {[%clk 0:02:55.5]} 10... Qc7 {[%clk 0:02:52.9]} 11. e4 {[%clk 0:02:51]}
11... f4 {[%clk 0:02:48.8]} 12. gxf4 {[%clk 0:02:48.3]} 12... Bxh3 {[%clk
0:02:48.7]} 13. Bxh3 {[%clk 0:02:39.9]} 13... exf4 {[%clk 0:02:49]} 14. c5
{[%clk 0:02:25.4]} 14... Qe5 {[%clk 0:02:41.2]} 15. Qd6 {[%clk 0:02:18.1]} 15...
Qg5+ {[%clk 0:02:33.3]} 16. Kh1 {[%clk 0:02:17.3]} 16... Nh5 {[%clk 0:02:30.5]}
17. Ne2 {[%clk 0:01:48.8]} 17... Na6 {[%clk 0:02:14.2]} 18. Ng3 {[%clk 0:01:37]}
18... Qh4 {[%clk 0:02:06.4]} 19. Be6+ {[%clk 0:01:25.9]} 19... Kh8 {[%clk
0:02:05.4]} 20. Nxh5 {[%clk 0:01:26.1]} 20... Qxh5 {[%clk 0:02:03.4]} 21. Bxf4
{[%clk 0:01:19.3]} 21... Rxf4 {[%clk 0:02:01.3]} 22. Qxf4 {[%clk 0:01:18.6]}
22... Be5 {[%clk 0:02:01.9]} 23. Bg4 {[%clk 0:01:15.3]} 23... Bxf4 {[%clk
0:02:01.8]} 24. Bxh5 {[%clk 0:01:15.4]} 24... gxh5 {[%clk 0:02:02.5]} 25. b4
{[%clk 0:01:07.6]} 25... Re8 {[%clk 0:01:28.6]} 26. f3 {[%clk 0:01:06.9]} 26...
Be5 {[%clk 0:01:23.1]} 27. Rad1 {[%clk 0:01:02.4]} 27... Nxb4 {[%clk 0:01:14.7]}
28. Rd7 {[%clk 0:01:01.4]} 28... Na6 {[%clk 0:01:14.7]} 29. Rxb7 {[%clk
0:00:51.9]} 29... Nxc5 {[%clk 0:01:15.1]} 30. Rxa7 {[%clk 0:00:52]} 30... Nd3
{[%clk 0:01:10.4]} 31. Rd7 {[%clk 0:00:44.4]} 31... Nf4 {[%clk 0:01:07.7]} 32.
Rb1 {[%clk 0:00:43.3]} 32... h4 {[%clk 0:00:57.6]} 33. Rbb7 {[%clk 0:00:34.8]}
33... h3 {[%clk 0:00:57]} 34. Rxh7+ {[%clk 0:00:32.8]} 34... Kg8 {[%clk
0:00:57.3]} 35. Kg1 {[%clk 0:00:25.9]} 35... Bd4+ {[%clk 0:00:44.8]} 36. Kf1
{[%clk 0:00:25.6]} 36... c5 {[%clk 0:00:45]} 37. a4 {[%clk 0:00:19.2]} 37... c4
{[%clk 0:00:45.1]} 38. Rhd7 {[%clk 0:00:18.9]} 38... Be3 {[%clk 0:00:43.3]} 39.
Ke1 {[%clk 0:00:12]} 39... Nd3+ {[%clk 0:00:27]} 40. Ke2 {[%clk 0:00:09.5]}
40... Bh6 {[%clk 0:00:26.2]} 41. Rbc7 {[%clk 0:00:08]} 41... Rb8 {[%clk
0:00:21.4]} 42. Rxc4 {[%clk 0:00:04.2]} 42... Rb2+ {[%clk 0:00:19.2]} 43. Kxd3
{[%clk 0:00:03.9]} 43... Rd2+ {[%clk 0:00:19.9]} 44. Kc3 {[%clk 0:00:04.1]}
44... Rxd7 {[%clk 0:00:20.6]} 45. Rc6 {[%clk 0:00:03.6]} 45... Bf4 {[%clk
0:00:20.3]} 46. Rg6+ {[%clk 0:00:02.5]} 46... Kh7 {[%clk 0:00:20.1]} 47. Rg4
{[%clk 0:00:02.6]} 47... Bxh2 {[%clk 0:00:19.8]} 48. Rh4+ {[%clk 0:00:03]} 48...
Kg6 {[%clk 0:00:20]} 49. Rxh3 {[%clk 0:00:03.9]} 49... Be5+ {[%clk 0:00:17.5]}
50. Kc4 {[%clk 0:00:03.7]} 50... Kg5 {[%clk 0:00:18.3]} 51. Kb5 {[%clk
0:00:04.5]} 51... Kf4 {[%clk 0:00:16.8]} 52. a5 {[%clk 0:00:04.1]} 52... Rb7+
{[%clk 0:00:17.5]} 53. Kc6 {[%clk 0:00:04]} 53... Rb1 {[%clk 0:00:18.2]} 54. Rh5
{[%clk 0:00:03.7]} 54... Bd4 {[%clk 0:00:18.3]} 55. Rf5+ {[%clk 0:00:03.4]}
55... Ke3 {[%clk 0:00:18.8]} 56. a6 {[%clk 0:00:03.5]} 56... Rb6+ {[%clk
0:00:18.6]} 57. Kd5 {[%clk 0:00:04.4]} 57... Rxa6 {[%clk 0:00:18.8]} 58. e5
{[%clk 0:00:04.2]} 58... Ra5+ {[%clk 0:00:17.8]} 59. Kd6 {[%clk 0:00:04.6]}
59... Ra6+ {[%clk 0:00:18.2]} 60. Kd5 {[%clk 0:00:04.5]} 60... Bc3 {[%clk
0:00:17.7]} 61. f4 {[%clk 0:00:02.8]} 61... Ra5+ {[%clk 0:00:16.4]} 62. Kd6
{[%clk 0:00:02.7]} 62... Ra6+ {[%clk 0:00:17.2]} 63. Kd5 {[%clk 0:00:02.7]}
63... Ra5+ {[%clk 0:00:17.4]} 64. Kd6 {[%clk 0:00:02.8]} 64... Ke4 {[%clk
0:00:18.3]} 65. Rf7 {[%clk 0:00:02.8]} 65... Ra6+ {[%clk 0:00:19]} 66. Kd7
{[%clk 0:00:02.8]} 66... Kd5 {[%clk 0:00:18.8]} 67. e6 {[%clk 0:00:01.9]} 67...
Ra7+ {[%clk 0:00:19.4]} 68. Ke8 {[%clk 0:00:01.7]} 68... Ra8+ {[%clk 0:00:19.7]}
69. Kd7 {[%clk 0:00:01.7]} 69... Bb4 {[%clk 0:00:19.4]} 0-1

[Event "Late-Titled-Tuesday-Blitz-April-16-2024"]
[Site "Chess.com"]
[Date "2024.04.16"]
[Round "8"]
[White "DirtyKabab"]
[Black "SilverCityIndigo"]
[Result "0-1"]
[WhiteElo "2513"]
[BlackElo "2434"]
[TimeControl "180+1"]
[EndTime "15:26:09 PDT"]
[Termination "SilverCityIndigo won by checkmate"]

1. e4 {[%clk 0:03:00.9]} 1... Na6 {[%clk 0:02:58.3]} 2. Nf3 {[%clk 0:02:57.9]}
2... c6 {[%clk 0:02:58.3]} 3. d4 {[%clk 0:02:58.5]} 3... Nc7 {[%clk 0:02:58]} 4.
c4 {[%clk 0:02:58]} 4... d5 {[%clk 0:02:58.2]} 5. cxd5 {[%clk 0:02:58.4]} 5...
cxd5 {[%clk 0:02:58.4]} 6. e5 {[%clk 0:02:58.9]} 6... Bg4 {[%clk 0:02:55.2]} 7.
Nc3 {[%clk 0:02:58.7]} 7... e6 {[%clk 0:02:53.9]} 8. h3 {[%clk 0:02:54.6]} 8...
Bxf3 {[%clk 0:02:52.1]} 9. Qxf3 {[%clk 0:02:55.5]} 9... Ne7 {[%clk 0:02:51.4]}
10. Bd3 {[%clk 0:02:53.9]} 10... Nc6 {[%clk 0:02:50.9]} 11. Be3 {[%clk
0:02:47.2]} 11... Qh4 {[%clk 0:02:46.3]} 12. Ne2 {[%clk 0:02:43.2]} 12... Bb4+
{[%clk 0:02:44]} 13. Kf1 {[%clk 0:02:43.7]} 13... Be7 {[%clk 0:02:35.4]} 14. g3
{[%clk 0:02:43.8]} 14... Nxe5 {[%clk 0:02:22.3]} 15. dxe5 {[%clk 0:02:41.2]}
15... Qb4 {[%clk 0:02:21.1]} 16. b3 {[%clk 0:02:35.2]} 16... O-O {[%clk
0:02:16.3]} 17. Kg2 {[%clk 0:02:29.6]} 17... f6 {[%clk 0:02:14.2]} 18. Qg4
{[%clk 0:02:14.5]} 18... Qxg4 {[%clk 0:02:12.7]} 19. hxg4 {[%clk 0:02:15.4]}
19... fxe5 {[%clk 0:02:12.1]} 20. Bxh7+ {[%clk 0:02:14.3]} 20... Kf7 {[%clk
0:02:07]} 21. Rac1 {[%clk 0:02:10.9]} 21... Nb5 {[%clk 0:02:03.2]} 22. a4 {[%clk
0:02:08.2]} 22... Nd6 {[%clk 0:02:01.3]} 23. Rc7 {[%clk 0:02:06]} 23... Rfc8
{[%clk 0:01:50]} 24. Bg6+ {[%clk 0:01:59.6]} 24... Kxg6 {[%clk 0:01:38.6]} 25.
Rxe7 {[%clk 0:02:00]} 25... Kf6 {[%clk 0:01:36.8]} 26. Rd7 {[%clk 0:01:59.7]}
26... Ne4 {[%clk 0:01:30.3]} 27. Rh7 {[%clk 0:01:53.9]} 27... Rc2 {[%clk
0:01:27.5]} 28. Rhxg7 {[%clk 0:01:52.4]} 28... Rf8 {[%clk 0:01:24.3]} 29. Bg5+
{[%clk 0:01:51.9]} 29... Nxg5 {[%clk 0:01:23.6]} 30. Ng1 {[%clk 0:01:42.5]}
30... Nf7 {[%clk 0:00:59.5]} 31. Rh7 {[%clk 0:01:39.9]} 31... Kg6 {[%clk
0:00:59.5]} 32. Rh5 {[%clk 0:01:35.3]} 32... Ng5 {[%clk 0:00:59.8]} 33. Rxg5+
{[%clk 0:01:11]} 33... Kxg5 {[%clk 0:01:00.7]} 34. Nf3+ {[%clk 0:01:03.3]} 34...
Kf6 {[%clk 0:00:49.9]} 35. g5+ {[%clk 0:00:53]} 35... Kf5 {[%clk 0:00:46.8]} 36.
Rg7 {[%clk 0:00:49]} 36... Ke4 {[%clk 0:00:46.3]} 37. Nh4 {[%clk 0:00:42]} 37...
Rfxf2+ {[%clk 0:00:40.6]} 38. Kh3 {[%clk 0:00:42.6]} 38... d4 {[%clk 0:00:40.5]}
39. g6 {[%clk 0:00:41.1]} 39... Rf6 {[%clk 0:00:26.2]} 40. Rxb7 {[%clk
0:00:35.3]} 40... Rc8 {[%clk 0:00:15.3]} 41. g7 {[%clk 0:00:28.7]} 41... d3
{[%clk 0:00:14.4]} 42. Rxa7 {[%clk 0:00:26.1]} 42... Rd8 {[%clk 0:00:13.4]} 43.
Rd7 {[%clk 0:00:25.6]} 43... Rxd7 {[%clk 0:00:12.5]} 44. g8=Q {[%clk 0:00:25.5]}
44... d2 {[%clk 0:00:13.2]} 45. Qa8+ {[%clk 0:00:23.4]} 45... Rd5 {[%clk
0:00:12.6]} 46. Qh8 {[%clk 0:00:11.7]} 46... Rf2 {[%clk 0:00:06]} 47. Qh7+
{[%clk 0:00:11.1]} 47... Ke3 {[%clk 0:00:06.4]} 48. Qh6+ {[%clk 0:00:09.9]}
48... Ke2 {[%clk 0:00:06.7]} 49. Qh5+ {[%clk 0:00:09.5]} 49... Ke1 {[%clk
0:00:04.9]} 50. Nf3+ {[%clk 0:00:06.6]} 50... Rxf3 {[%clk 0:00:05.2]} 51. Qxf3
{[%clk 0:00:07.5]} 51... d1=Q {[%clk 0:00:05.8]} 52. Qh1+ {[%clk 0:00:05.9]}
52... Kd2 {[%clk 0:00:05.9]} 53. Qe4 {[%clk 0:00:04.1]} 53... Qh5+ {[%clk
0:00:05.2]} 54. Kg2 {[%clk 0:00:03.6]} 54... Qe2+ {[%clk 0:00:05.7]} 55. Qxe2+
{[%clk 0:00:03.1]} 55... Kxe2 {[%clk 0:00:06.6]} 56. g4 {[%clk 0:00:02.8]} 56...
Rd4 {[%clk 0:00:07]} 57. Kg3 {[%clk 0:00:02.1]} 57... e4 {[%clk 0:00:07]} 58. g5
{[%clk 0:00:02.7]} 58... e3 {[%clk 0:00:06.9]} 59. g6 {[%clk 0:00:03.2]} 59...
Kf1 {[%clk 0:00:06.8]} 60. Kf3 {[%clk 0:00:03.1]} 60... e2 {[%clk 0:00:06.9]}
61. g7 {[%clk 0:00:04]} 61... Rd8 {[%clk 0:00:07]} 62. g8=Q {[%clk 0:00:03.2]}
62... Rxg8 {[%clk 0:00:07.2]} 63. a5 {[%clk 0:00:03.9]} 63... e1=Q {[%clk
0:00:08.1]} 64. a6 {[%clk 0:00:04.8]} 64... Qa5 {[%clk 0:00:08.6]} 65. a7 {[%clk
0:00:05.7]} 65... Qxa7 {[%clk 0:00:09]} 66. b4 {[%clk 0:00:04.8]} 66... Qd4
{[%clk 0:00:09.6]} 67. b5 {[%clk 0:00:05.7]} 67... e5 {[%clk 0:00:10.3]} 68. b6
{[%clk 0:00:06.6]} 68... Qf4# {[%clk 0:00:10.9]} 0-1

[Event "Late-Titled-Tuesday-Blitz-April-16-2024"]
[Site "Chess.com"]
[Date "2024.04.16"]
[Round "8"]
[White "Romkachess"]
[Black "Leebit02"]
[Result "0-1"]
[WhiteElo "2672"]
[BlackElo "2563"]
[TimeControl "180+1"]
[EndTime "15:26:11 PDT"]
[Termination "Leebit02 won by resignation"]

1. e4 {[%clk 0:02:55.6]} 1... c5 {[%clk 0:02:59.8]} 2. Nf3 {[%clk 0:02:53.1]}
2... e6 {[%clk 0:03:00]} 3. d4 {[%clk 0:02:52.6]} 3... cxd4 {[%clk 0:03:00.4]}
4. Nxd4 {[%clk 0:02:53]} 4... Nc6 {[%clk 0:03:00]} 5. Nc3 {[%clk 0:02:47.3]}
5... a6 {[%clk 0:03:00.1]} 6. Be3 {[%clk 0:02:47]} 6... Nf6 {[%clk 0:02:58.9]}
7. a3 {[%clk 0:02:44.1]} 7... d6 {[%clk 0:02:56.2]} 8. Be2 {[%clk 0:02:43.5]}
8... Bd7 {[%clk 0:02:42.2]} 9. g4 {[%clk 0:02:41.8]} 9... Nxd4 {[%clk 0:02:16]}
10. Bxd4 {[%clk 0:02:37.1]} 10... Bc6 {[%clk 0:02:15.8]} 11. Bf3 {[%clk
0:02:33.4]} 11... d5 {[%clk 0:01:52.2]} 12. e5 {[%clk 0:02:11.7]} 12... Ne4
{[%clk 0:01:51]} 13. Qe2 {[%clk 0:01:51.3]} 13... Nxc3 {[%clk 0:01:41.1]} 14.
bxc3 {[%clk 0:01:52.2]} 14... Qa5 {[%clk 0:01:36.4]} 15. Qe3 {[%clk 0:01:30.5]}
15... Be7 {[%clk 0:01:31.5]} 16. O-O {[%clk 0:01:19.8]} 16... Qa4 {[%clk
0:01:13.5]} 17. h3 {[%clk 0:00:56.6]} 17... Qxc2 {[%clk 0:01:01.1]} 18. Rfc1
{[%clk 0:00:56.3]} 18... Qg6 {[%clk 0:01:01.1]} 19. c4 {[%clk 0:00:56.8]} 19...
O-O {[%clk 0:00:54.6]} 20. cxd5 {[%clk 0:00:56.8]} 20... Bxd5 {[%clk 0:00:48.6]}
21. Bxd5 {[%clk 0:00:55.9]} 21... exd5 {[%clk 0:00:49.2]} 22. Rc7 {[%clk
0:00:54.4]} 22... Bg5 {[%clk 0:00:47.8]} 23. Qf3 {[%clk 0:00:53]} 23... b5
{[%clk 0:00:40.3]} 24. Rd1 {[%clk 0:00:26.6]} 24... Rad8 {[%clk 0:00:39.7]} 25.
Qg3 {[%clk 0:00:18.7]} 25... Qh6 {[%clk 0:00:24.6]} 26. Kg2 {[%clk 0:00:17.6]}
26... Bf4 {[%clk 0:00:24]} 27. Qf3 {[%clk 0:00:17.2]} 27... f6 {[%clk
0:00:21.9]} 28. e6 {[%clk 0:00:16.7]} 28... Bxc7 {[%clk 0:00:21.8]} 29. e7
{[%clk 0:00:16.6]} 29... Qf4 {[%clk 0:00:20.5]} 30. exf8=Q+ {[%clk 0:00:15.6]}
30... Kxf8 {[%clk 0:00:21.1]} 31. Bc5+ {[%clk 0:00:12.6]} 31... Kf7 {[%clk
0:00:21.6]} 32. Qxf4 {[%clk 0:00:09]} 32... Bxf4 {[%clk 0:00:22.3]} 33. Kf3
{[%clk 0:00:09.9]} 33... Be5 {[%clk 0:00:22.8]} 34. Re1 {[%clk 0:00:09.5]} 34...
Ke6 {[%clk 0:00:23.2]} 35. Ke2 {[%clk 0:00:09.8]} 35... g5 {[%clk 0:00:22.8]}
36. Kd3 {[%clk 0:00:10.2]} 36... Rc8 {[%clk 0:00:22.4]} 37. Bd4 {[%clk
0:00:09.9]} 37... Rc4 {[%clk 0:00:22.4]} 38. Bb2 {[%clk 0:00:07.6]} 38... Kd6
{[%clk 0:00:21.4]} 39. Bc1 {[%clk 0:00:06.9]} 39... Rc3+ {[%clk 0:00:20.5]} 40.
Kd2 {[%clk 0:00:06.7]} 40... Rc4 {[%clk 0:00:19]} 41. Kd3 {[%clk 0:00:06.1]}
41... Rc3+ {[%clk 0:00:19.6]} 42. Kd2 {[%clk 0:00:06.5]} 42... Rxh3 {[%clk
0:00:20.3]} 43. Ke2 {[%clk 0:00:03.1]} 43... d4 {[%clk 0:00:16.4]} 44. Bd2
{[%clk 0:00:03.4]} 44... Kd5 {[%clk 0:00:16.9]} 45. Ra1 {[%clk 0:00:01.8]} 45...
Ke4 {[%clk 0:00:16.9]} 46. f3+ {[%clk 0:00:01.9]} 46... Rxf3 {[%clk 0:00:16.9]}
47. Re1 {[%clk 0:00:02.8]} 47... d3+ {[%clk 0:00:16.2]} 48. Kd1+ {[%clk
0:00:03.7]} 48... Kd5 {[%clk 0:00:16.6]} 49. Rh1 {[%clk 0:00:04.2]} 49... Rg3
{[%clk 0:00:13.5]} 50. Be1 {[%clk 0:00:04.3]} 50... Rxg4 {[%clk 0:00:13.4]} 51.
Kd2 {[%clk 0:00:05.2]} 51... Kd4 {[%clk 0:00:10.7]} 52. Bf2+ {[%clk 0:00:05.2]}
52... Ke4 {[%clk 0:00:11]} 53. Re1+ {[%clk 0:00:05.6]} 53... Kf3 {[%clk
0:00:11.6]} 54. Bc5 {[%clk 0:00:06]} 54... Rc4 {[%clk 0:00:10.6]} 55. Bb4 {[%clk
0:00:05.7]} 55... Rd4 {[%clk 0:00:10.6]} 56. Rf1+ {[%clk 0:00:05.8]} 56... Ke4
{[%clk 0:00:10.6]} 57. Re1+ {[%clk 0:00:06]} 57... Kd5 {[%clk 0:00:11.2]} 58.
Rh1 {[%clk 0:00:05.9]} 58... Bf4+ {[%clk 0:00:10.8]} 59. Kd1 {[%clk 0:00:06.2]}
59... d2 {[%clk 0:00:09.9]} 60. Rxh7 {[%clk 0:00:06.8]} 60... Rd3 {[%clk
0:00:10.1]} 61. Rd7+ {[%clk 0:00:05.3]} 61... Kc4 {[%clk 0:00:10.6]} 62. Re7
{[%clk 0:00:04.4]} 62... Rf3 {[%clk 0:00:09.7]} 63. Kc2 {[%clk 0:00:04.1]} 63...
Rf1 {[%clk 0:00:08.9]} 64. Bxd2 {[%clk 0:00:04.2]} 64... Rf2 {[%clk 0:00:09.6]}
65. Rd7 {[%clk 0:00:03.9]} 65... Rxd2+ {[%clk 0:00:09.5]} 66. Rxd2 {[%clk
0:00:04.8]} 66... Bxd2 {[%clk 0:00:10]} 67. Kxd2 {[%clk 0:00:05.7]} 67... Kb3
{[%clk 0:00:10.7]} 68. a4 {[%clk 0:00:04.9]} 68... Kxa4 {[%clk 0:00:11]} 69. Kc3
{[%clk 0:00:04.2]} 69... g4 {[%clk 0:00:11.2]} 70. Kb2 {[%clk 0:00:05.1]} 70...
g3 {[%clk 0:00:11.8]} 0-1

[Event "Late-Titled-Tuesday-Blitz-April-16-2024"]
[Site "Chess.com"]
[Date "2024.04.16"]
[Round "8"]
[White "MaxLeto"]
[Black "simaopdias"]
[Result "1-0"]
[WhiteElo "2421"]
[BlackElo "2242"]
[TimeControl "180+1"]
[EndTime "15:26:24 PDT"]
[Termination "MaxLeto won by resignation"]

1. g4 {[%clk 0:02:54.8]} 1... d5 {[%clk 0:02:59]} 2. Bg2 {[%clk 0:02:54.1]} 2...
e6 {[%clk 0:02:58.9]} 3. d4 {[%clk 0:02:52.4]} 3... Bd6 {[%clk 0:02:58.9]} 4. c4
{[%clk 0:02:47.6]} 4... dxc4 {[%clk 0:02:56.9]} 5. Nc3 {[%clk 0:02:46.6]} 5...
c6 {[%clk 0:02:57]} 6. Nf3 {[%clk 0:02:33.9]} 6... Nf6 {[%clk 0:02:56.4]} 7. g5
{[%clk 0:02:24.3]} 7... Nd5 {[%clk 0:02:55.9]} 8. e4 {[%clk 0:01:53.2]} 8... Nf4
{[%clk 0:02:52.7]} 9. Bxf4 {[%clk 0:01:50.9]} 9... Bxf4 {[%clk 0:02:52.4]} 10.
h4 {[%clk 0:01:47.2]} 10... Bd6 {[%clk 0:02:47.3]} 11. Nd2 {[%clk 0:01:39.4]}
11... b5 {[%clk 0:02:40.9]} 12. e5 {[%clk 0:01:37.4]} 12... Bb4 {[%clk
0:02:38.7]} 13. Nxb5 {[%clk 0:01:33.1]} 13... cxb5 {[%clk 0:02:28.9]} 14. Bxa8
{[%clk 0:01:34]} 14... Qxd4 {[%clk 0:02:22]} 15. Qc2 {[%clk 0:00:50.2]} 15...
O-O {[%clk 0:02:10.5]} 16. O-O-O {[%clk 0:00:44.7]} 16... Qxe5 {[%clk
0:02:07.9]} 17. Nf3 {[%clk 0:00:36.1]} 17... Qc7 {[%clk 0:02:03.4]} 18. Nd4
{[%clk 0:00:32.5]} 18... a6 {[%clk 0:01:54.7]} 19. Kb1 {[%clk 0:00:29.6]} 19...
Bd7 {[%clk 0:01:44.1]} 20. Be4 {[%clk 0:00:29.4]} 20... Nc6 {[%clk 0:01:35.3]}
21. Bxh7+ {[%clk 0:00:27.9]} 21... Kh8 {[%clk 0:01:35.5]} 22. h5 {[%clk
0:00:26]} 22... Nxd4 {[%clk 0:01:29.9]} 23. Rxd4 {[%clk 0:00:26.9]} 23... Bc6
{[%clk 0:01:28.4]} 24. Be4 {[%clk 0:00:22.8]} 24... Qe5 {[%clk 0:01:25.8]} 25.
Rhd1 {[%clk 0:00:21.4]} 25... Bc5 {[%clk 0:01:13.3]} 26. f4 {[%clk 0:00:07.7]}
26... Bxe4 {[%clk 0:01:04.2]} 27. Rxe4 {[%clk 0:00:07.2]} 27... Qf5 {[%clk
0:01:02.7]} 28. h6 {[%clk 0:00:07.1]} 28... gxh6 {[%clk 0:00:58.4]} 29. Rh1
{[%clk 0:00:06.4]} 29... Rd8 {[%clk 0:00:51.6]} 30. Rxh6+ {[%clk 0:00:06.9]}
30... Kg7 {[%clk 0:00:51.7]} 31. Rh1 {[%clk 0:00:07.6]} 31... Kf8 {[%clk
0:00:39.5]} 32. Rh8+ {[%clk 0:00:06.7]} 32... Ke7 {[%clk 0:00:39.9]} 33. Rxd8
{[%clk 0:00:07.6]} 33... Kxd8 {[%clk 0:00:39.3]} 34. a3 {[%clk 0:00:08]} 34...
Ke7 {[%clk 0:00:35.7]} 35. Ka2 {[%clk 0:00:08.1]} 35... Bd6 {[%clk 0:00:35.2]}
36. Qe2 {[%clk 0:00:03.8]} 36... Bxf4 {[%clk 0:00:32.7]} 37. Qf3 {[%clk
0:00:02.4]} 37... e5 {[%clk 0:00:30.2]} 38. Re2 {[%clk 0:00:01.9]} 38... Qxg5
{[%clk 0:00:28.6]} 39. Qb7+ {[%clk 0:00:02.6]} 39... Kf6 {[%clk 0:00:28.6]} 40.
Qxa6+ {[%clk 0:00:03.2]} 40... Kg7 {[%clk 0:00:28.8]} 41. Qxb5 {[%clk
0:00:04.1]} 41... c3 {[%clk 0:00:26.6]} 42. Qb3 {[%clk 0:00:03.8]} 42... cxb2
{[%clk 0:00:21.6]} 43. Qxb2 {[%clk 0:00:04.7]} 43... Kf6 {[%clk 0:00:15.1]} 44.
Rg2 {[%clk 0:00:05]} 44... Qf5 {[%clk 0:00:13.4]} 45. Qb6+ {[%clk 0:00:05.3]}
45... Ke7 {[%clk 0:00:12.3]} 46. Qc7+ {[%clk 0:00:05.6]} 46... Kf6 {[%clk
0:00:09.7]} 47. Qd6+ {[%clk 0:00:05]} 47... Qe6+ {[%clk 0:00:10.2]} 48. Qxe6+
{[%clk 0:00:05.3]} 48... Kxe6 {[%clk 0:00:10.8]} 49. Kb3 {[%clk 0:00:05.8]}
49... Kd5 {[%clk 0:00:09.1]} 50. a4 {[%clk 0:00:03.6]} 50... e4 {[%clk
0:00:09.2]} 51. a5 {[%clk 0:00:03.9]} 51... Bc7 {[%clk 0:00:07.5]} 52. a6 {[%clk
0:00:03.4]} 52... Bb6 {[%clk 0:00:07.1]} 53. Rg7 {[%clk 0:00:03.2]} 53... e3
{[%clk 0:00:06]} 54. Kc2 {[%clk 0:00:02.9]} 54... Ke6 {[%clk 0:00:04.9]} 55. Kd3
{[%clk 0:00:02.2]} 55... Ke5 {[%clk 0:00:01.6]} 56. Rxf7 {[%clk 0:00:02.5]}
56... Bc5 {[%clk 0:00:01.2]} 57. a7 {[%clk 0:00:03.4]} 57... Bxa7 {[%clk
0:00:01.3]} 58. Rxa7 {[%clk 0:00:04.3]} 58... Kf4 {[%clk 0:00:01.8]} 59. Ke2
{[%clk 0:00:05.2]} 59... Ke4 {[%clk 0:00:01.8]} 60. Ra3 {[%clk 0:00:06.1]} 60...
Kd4 {[%clk 0:00:02.4]} 61. Rxe3 {[%clk 0:00:07]} 61... Kd5 {[%clk 0:00:02.9]}
62. Kd3 {[%clk 0:00:07.2]} 62... Kc5 {[%clk 0:00:03.5]} 63. Re4 {[%clk
0:00:08.1]} 63... Kd6 {[%clk 0:00:04]} 64. Rd4+ {[%clk 0:00:09]} 64... Kc6
{[%clk 0:00:04.5]} 65. Ke4 {[%clk 0:00:09.9]} 65... Kc5 {[%clk 0:00:05]} 66.
Rd5+ {[%clk 0:00:10.8]} 66... Kc6 {[%clk 0:00:05.5]} 67. Ke5 {[%clk 0:00:11.7]}
67... Kb6 {[%clk 0:00:06]} 68. Kd6 {[%clk 0:00:12.4]} 68... Kb7 {[%clk
0:00:06.5]} 69. Rb5+ {[%clk 0:00:12.9]} 69... Kc8 {[%clk 0:00:06.7]} 70. Rb4
{[%clk 0:00:11.7]} 1-0